[Event "*** Biggest EVER Titled Tuesday"]
[Site "Chess.com"]
[Date "2018.04.17"]
[Round "10"]
[White "Diwi89"]
[Black "nailbeshirli"]
[Result "0-1"]
[WhiteElo "2704"]
[BlackElo "2374"]
[TimeControl "180+2"]
[EndTime "15:21:09 PDT"]
[Termination "nailbeshirli won by resignation"]

1. e4 {[%clk 0:03:01.9]} 1... c5 {[%clk 0:02:55.6]} 2. Nc3 {[%clk 0:03:01]} 2...
d6 {[%clk 0:02:55.9]} 3. Nf3 {[%clk 0:03:01.8]} 3... Nf6 {[%clk 0:02:49.2]} 4.
d4 {[%clk 0:03:02]} 4... cxd4 {[%clk 0:02:48.5]} 5. Nxd4 {[%clk 0:03:03.9]} 5...
Nc6 {[%clk 0:02:50.1]} 6. Be3 {[%clk 0:03:01.6]} 6... e6 {[%clk 0:02:48.2]} 7.
f3 {[%clk 0:03:01.1]} 7... a6 {[%clk 0:02:49.2]} 8. Qd2 {[%clk 0:03:00.8]} 8...
Bd7 {[%clk 0:02:50.3]} 9. g4 {[%clk 0:02:59.7]} 9... b5 {[%clk 0:02:51.3]} 10.
g5 {[%clk 0:02:58.8]} 10... Nh5 {[%clk 0:02:49.3]} 11. O-O-O {[%clk 0:03:00.3]}
11... Rc8 {[%clk 0:02:48.5]} 12. Kb1 {[%clk 0:02:56.1]} 12... Ne5 {[%clk
0:02:47.9]} 13. f4 {[%clk 0:02:53.2]} 13... Nc4 {[%clk 0:02:47.3]} 14. Bxc4
{[%clk 0:02:53.4]} 14... Rxc4 {[%clk 0:02:46.6]} 15. f5 {[%clk 0:02:54.7]} 15...
Be7 {[%clk 0:02:45.4]} 16. fxe6 {[%clk 0:02:51]} 16... fxe6 {[%clk 0:02:45.8]}
17. Rhf1 {[%clk 0:02:51.7]} 17... Qc7 {[%clk 0:02:41.9]} 18. Nce2 {[%clk
0:02:45.2]} 18... Qb7 {[%clk 0:02:31.9]} 19. e5 {[%clk 0:02:31.8]} 19... d5
{[%clk 0:02:24.9]} 20. Nf4 {[%clk 0:02:27.8]} 20... Nxf4 {[%clk 0:02:23.8]} 21.
Bxf4 {[%clk 0:02:29.3]} 21... O-O {[%clk 0:02:23.8]} 22. h4 {[%clk 0:02:28.6]}
22... Bc5 {[%clk 0:02:18.5]} 23. Be3 {[%clk 0:02:29.6]} 23... Rc8 {[%clk
0:02:18.4]} 24. b3 {[%clk 0:02:14.3]} 24... Bxd4 {[%clk 0:01:54]} 25. Bxd4
{[%clk 0:02:16.2]} 25... R4c7 {[%clk 0:01:53.3]} 26. Qf4 {[%clk 0:02:10.2]}
26... Bc6 {[%clk 0:01:45.5]} 27. Bc5 {[%clk 0:02:11.3]} 27... Rf7 {[%clk
0:01:45.1]} 28. Qd4 {[%clk 0:02:04.7]} 28... Be8 {[%clk 0:01:43.1]} 29. Rxf7
{[%clk 0:02:01.6]} 29... Bxf7 {[%clk 0:01:45]} 30. Rf1 {[%clk 0:02:01.2]} 30...
Bg6 {[%clk 0:01:44.8]} 31. b4 {[%clk 0:02:01.9]} 31... a5 {[%clk 0:01:44.2]} 32.
a3 {[%clk 0:02:02.5]} 32... axb4 {[%clk 0:01:44.4]} 33. axb4 {[%clk 0:02:03.3]}
33... Bf5 {[%clk 0:01:35.7]} 34. h5 {[%clk 0:01:52.5]} 34... Qf7 {[%clk
0:01:33]} 35. h6 {[%clk 0:01:52.1]} 35... Bxc2+ {[%clk 0:01:32.5]} 36. Kxc2
{[%clk 0:01:51.9]} 36... Qxf1 {[%clk 0:01:34.4]} 37. hxg7 {[%clk 0:01:52.4]}
37... Ra8 {[%clk 0:01:34.6]} 38. Ba7 {[%clk 0:01:47.9]} 38... Qe2+ {[%clk
0:01:28.7]} 39. Kc1 {[%clk 0:01:43.4]} 39... Qc4+ {[%clk 0:01:15.6]} 40. Qxc4
{[%clk 0:01:44.3]} 40... bxc4 {[%clk 0:01:17.5]} 41. Bc5 {[%clk 0:01:45.1]}
41... Kxg7 {[%clk 0:01:15.7]} 42. b5 {[%clk 0:01:42.8]} 42... Rb8 {[%clk
0:01:16.5]} 43. b6 {[%clk 0:01:43.9]} 43... Kg6 {[%clk 0:01:18.1]} 44. Be3
{[%clk 0:01:44.1]} 44... Kf5 {[%clk 0:01:18.1]} 45. Bf2 {[%clk 0:01:35.5]} 45...
Rb7 {[%clk 0:01:16.7]} 46. Kd2 {[%clk 0:01:35.7]} 46... Kxe5 {[%clk 0:01:17.8]}
47. Kc3 {[%clk 0:01:37.2]} 47... Kd6 {[%clk 0:01:19.3]} 0-1

[Event "*** Biggest EVER Titled Tuesday"]
[Site "Chess.com"]
[Date "2018.04.17"]
[Round "10"]
[White "JosefineHeinemann"]
[Black "rekosheten"]
[Result "0-1"]
[WhiteElo "2359"]
[BlackElo "2345"]
[TimeControl "180+2"]
[EndTime "15:21:18 PDT"]
[Termination "rekosheten won by checkmate"]

1. e4 {[%clk 0:03:01.9]} 1... Nf6 {[%clk 0:03:00.2]} 2. e5 {[%clk 0:03:02.1]}
2... Nd5 {[%clk 0:03:01.7]} 3. Nc3 {[%clk 0:03:03.1]} 3... Nxc3 {[%clk
0:03:01.5]} 4. bxc3 {[%clk 0:03:04.5]} 4... d6 {[%clk 0:03:02.2]} 5. exd6 {[%clk
0:03:05.4]} 5... cxd6 {[%clk 0:02:56.1]} 6. d4 {[%clk 0:03:06.4]} 6... g6 {[%clk
0:02:56.9]} 7. Bd3 {[%clk 0:03:07.3]} 7... Bg7 {[%clk 0:02:58.2]} 8. Ne2 {[%clk
0:03:08.5]} 8... O-O {[%clk 0:02:57.6]} 9. O-O {[%clk 0:03:09.6]} 9... Nc6
{[%clk 0:02:58.5]} 10. a4 {[%clk 0:03:09.5]} 10... b6 {[%clk 0:02:51.6]} 11. Ng3
{[%clk 0:03:06.4]} 11... e5 {[%clk 0:02:48.9]} 12. d5 {[%clk 0:03:06.4]} 12...
Ne7 {[%clk 0:02:49.5]} 13. c4 {[%clk 0:03:06.8]} 13... e4 {[%clk 0:02:48.4]} 14.
Nxe4 {[%clk 0:03:05.2]} 14... Bxa1 {[%clk 0:02:49.8]} 15. c3 {[%clk 0:03:06.2]}
15... f5 {[%clk 0:02:47.4]} 16. Ng5 {[%clk 0:03:02.3]} 16... Bxc3 {[%clk
0:02:47.4]} 17. h4 {[%clk 0:02:58.2]} 17... h6 {[%clk 0:02:29.4]} 18. Ne6 {[%clk
0:02:56]} 18... Bxe6 {[%clk 0:02:30.7]} 19. dxe6 {[%clk 0:02:57.2]} 19... Bg7
{[%clk 0:02:28.1]} 20. Re1 {[%clk 0:02:57.8]} 20... Rc8 {[%clk 0:02:24.2]} 21.
Qf3 {[%clk 0:02:52]} 21... Rc5 {[%clk 0:02:21.7]} 22. Ba3 {[%clk 0:02:50]} 22...
Re5 {[%clk 0:02:22.4]} 23. Rd1 {[%clk 0:02:48.9]} 23... Rxe6 {[%clk 0:02:20]}
24. h5 {[%clk 0:02:46.9]} 24... g5 {[%clk 0:02:17.4]} 25. Bb1 {[%clk 0:02:47.4]}
25... Kh8 {[%clk 0:02:13.2]} 26. Qd3 {[%clk 0:02:46.4]} 26... Be5 {[%clk
0:02:07.8]} 27. g4 {[%clk 0:02:46.1]} 27... Ref6 {[%clk 0:02:04.8]} 28. c5
{[%clk 0:02:45]} 28... bxc5 {[%clk 0:02:03.3]} 29. Bxc5 {[%clk 0:02:45.5]} 29...
Qa5 {[%clk 0:01:42.9]} 30. Be3 {[%clk 0:02:44.7]} 30... Qxa4 {[%clk 0:01:40.8]}
31. Bc2 {[%clk 0:02:44.2]} 31... Qxg4+ {[%clk 0:01:40.9]} 32. Kf1 {[%clk
0:02:45.3]} 32... Qxh5 {[%clk 0:01:39.1]} 33. Rb1 {[%clk 0:02:44]} 33... Nc6
{[%clk 0:01:19.8]} 34. Rb7 {[%clk 0:02:42.2]} 34... a5 {[%clk 0:01:13.2]} 35.
Qa6 {[%clk 0:02:33.3]} 35... d5 {[%clk 0:00:49.4]} 36. Bxf5 {[%clk 0:02:20.5]}
36... Rxf5 {[%clk 0:00:34.6]} 37. Qxc6 {[%clk 0:02:20.9]} 37... R5f6 {[%clk
0:00:19.1]} 38. Qxd5 {[%clk 0:02:19.4]} 38... g4 {[%clk 0:00:16.8]} 39. Bc5
{[%clk 0:02:05.9]} 39... g3 {[%clk 0:00:13.7]} 40. Qe4 {[%clk 0:02:02.1]} 40...
Rxf2+ {[%clk 0:00:12.6]} 41. Bxf2 {[%clk 0:02:02.2]} 41... Qd1+ {[%clk
0:00:11.9]} 42. Kg2 {[%clk 0:02:02]} 42... Rxf2+ {[%clk 0:00:12.6]} 43. Kh3
{[%clk 0:02:01.4]} 43... Qh5+ {[%clk 0:00:13.4]} 44. Qh4 {[%clk 0:02:01]} 44...
Rh2# {[%clk 0:00:15.3]} 0-1

[Event "*** Biggest EVER Titled Tuesday"]
[Site "Chess.com"]
[Date "2018.04.17"]
[Round "10"]
[White "Fighterman91"]
[Black "gkchesstiger"]
[Result "0-1"]
[WhiteElo "2601"]
[BlackElo "2781"]
[TimeControl "180+2"]
[EndTime "15:21:23 PDT"]
[Termination "gkchesstiger won by resignation"]

1. e4 {[%clk 0:03:01.9]} 1... c5 {[%clk 0:02:54.7]} 2. Nf3 {[%clk 0:02:59]} 2...
e6 {[%clk 0:02:55.8]} 3. d4 {[%clk 0:02:57]} 3... cxd4 {[%clk 0:02:57]} 4. Nxd4
{[%clk 0:02:51.5]} 4... a6 {[%clk 0:02:58.2]} 5. Be2 {[%clk 0:02:49.6]} 5... b6
{[%clk 0:02:54.4]} 6. O-O {[%clk 0:02:45.5]} 6... Bb7 {[%clk 0:02:55.5]} 7. Bf3
{[%clk 0:02:44.2]} 7... Ne7 {[%clk 0:02:51.4]} 8. Bg5 {[%clk 0:02:22.1]} 8...
Qc7 {[%clk 0:02:50.2]} 9. Nd2 {[%clk 0:02:13.7]} 9... Ng6 {[%clk 0:02:47.1]} 10.
c4 {[%clk 0:02:01.1]} 10... Nc6 {[%clk 0:02:43.5]} 11. Nxc6 {[%clk 0:02:00]}
11... Bxc6 {[%clk 0:02:44.3]} 12. Be3 {[%clk 0:01:49.8]} 12... Bc5 {[%clk
0:02:27.7]} 13. Qe1 {[%clk 0:01:33.9]} 13... O-O {[%clk 0:02:27.7]} 14. Bxc5
{[%clk 0:01:21.7]} 14... bxc5 {[%clk 0:02:28.3]} 15. Qe3 {[%clk 0:01:23.6]}
15... d6 {[%clk 0:02:21.4]} 16. b3 {[%clk 0:01:24.8]} 16... a5 {[%clk
0:02:19.5]} 17. a4 {[%clk 0:01:24.9]} 17... Rab8 {[%clk 0:02:20]} 18. Bd1 {[%clk
0:01:25.9]} 18... e5 {[%clk 0:02:15.7]} 19. Bc2 {[%clk 0:01:24.2]} 19... Nf4
{[%clk 0:02:16.1]} 20. f3 {[%clk 0:00:41.5]} 20... Ne6 {[%clk 0:02:15.8]} 21.
Rab1 {[%clk 0:00:37.4]} 21... g6 {[%clk 0:02:15.4]} 22. Rbe1 {[%clk 0:00:32.6]}
22... Rbe8 {[%clk 0:02:07.6]} 23. Bd1 {[%clk 0:00:25]} 23... f5 {[%clk
0:02:07.6]} 24. exf5 {[%clk 0:00:24.6]} 24... gxf5 {[%clk 0:02:08.3]} 25. Nb1
{[%clk 0:00:23.3]} 25... f4 {[%clk 0:02:05.3]} 26. Qd2 {[%clk 0:00:24.4]} 26...
Nd4 {[%clk 0:02:06]} 27. Nc3 {[%clk 0:00:25.7]} 27... Kh8 {[%clk 0:02:03.6]} 28.
Bc2 {[%clk 0:00:21.2]} 28... Rg8 {[%clk 0:02:01.4]} 29. Kh1 {[%clk 0:00:20.9]}
29... Re6 {[%clk 0:01:58.3]} 30. Be4 {[%clk 0:00:15.4]} 30... Nxb3 {[%clk
0:01:51.2]} 31. Qb2 {[%clk 0:00:14.7]} 31... Nd4 {[%clk 0:01:51.5]} 32. Nd5
{[%clk 0:00:15.3]} 32... Qd8 {[%clk 0:01:50.1]} 33. Qb6 {[%clk 0:00:09.6]} 33...
Qh4 {[%clk 0:01:42.5]} 34. Nxf4 {[%clk 0:00:05.1]} 34... Rh6 {[%clk 0:01:34.2]}
35. Nh3 {[%clk 0:00:05.4]} 35... Rxg2 {[%clk 0:01:31.7]} 36. Qd8+ {[%clk
0:00:04.3]} 36... Qxd8 {[%clk 0:01:32.1]} 0-1

[Event "*** Biggest EVER Titled Tuesday"]
[Site "Chess.com"]
[Date "2018.04.17"]
[Round "10"]
[White "MateusViageiro"]
[Black "BIG_Pirate"]
[Result "0-1"]
[WhiteElo "2196"]
[BlackElo "2276"]
[TimeControl "180+2"]
[EndTime "15:21:25 PDT"]
[Termination "BIG_Pirate won by resignation"]

1. e4 {[%clk 0:02:58.3]} 1... d5 {[%clk 0:03:00.8]} 2. exd5 {[%clk 0:02:56.7]}
2... Qxd5 {[%clk 0:03:02.7]} 3. Nc3 {[%clk 0:02:58.2]} 3... Qa5 {[%clk
0:03:03.3]} 4. Nf3 {[%clk 0:02:58.7]} 4... Nf6 {[%clk 0:03:04.2]} 5. Bc4 {[%clk
0:02:59.2]} 5... Bg4 {[%clk 0:03:04.9]} 6. d4 {[%clk 0:02:55.5]} 6... Nc6 {[%clk
0:03:03.1]} 7. Be3 {[%clk 0:02:37.9]} 7... O-O-O {[%clk 0:02:58.7]} 8. O-O
{[%clk 0:02:30]} 8... e5 {[%clk 0:02:56.4]} 9. d5 {[%clk 0:01:53.3]} 9... e4
{[%clk 0:02:46.3]} 10. h3 {[%clk 0:01:54]} 10... exf3 {[%clk 0:02:46.2]} 11.
hxg4 {[%clk 0:01:53.6]} 11... fxg2 {[%clk 0:02:47.3]} 12. Kxg2 {[%clk
0:01:54.7]} 12... Ne5 {[%clk 0:02:48.2]} 13. Be2 {[%clk 0:01:55]} 13... Nxd5
{[%clk 0:02:46]} 14. Nxd5 {[%clk 0:01:47.8]} 14... Rxd5 {[%clk 0:02:42.7]} 15.
Qe1 {[%clk 0:01:41.8]} 15... Qa4 {[%clk 0:02:25.5]} 16. b3 {[%clk 0:01:33.5]}
16... Qe4+ {[%clk 0:02:24.7]} 17. Kg3 {[%clk 0:01:32.2]} 17... Bd6 {[%clk
0:02:13.1]} 18. Kh3 {[%clk 0:01:27.6]} 18... h5 {[%clk 0:01:59]} 19. g5 {[%clk
0:01:27.7]} 19... Nf3 {[%clk 0:01:52.3]} 20. Rg1 {[%clk 0:01:11.6]} 20... Qh4+
{[%clk 0:01:39.3]} 21. Kg2 {[%clk 0:01:10.4]} 21... Nxe1+ {[%clk 0:01:40]} 22.
Raxe1 {[%clk 0:01:05.4]} 22... Qh2+ {[%clk 0:01:38.2]} 23. Kf3 {[%clk
0:01:06.5]} 23... Rf5+ {[%clk 0:01:36.2]} 24. Ke4 {[%clk 0:01:07]} 24... Qe5+
{[%clk 0:01:30.9]} 25. Kd3 {[%clk 0:01:07.3]} 25... Rd8 {[%clk 0:01:11.9]} 26.
Bxh5 {[%clk 0:00:44.5]} 26... Bb4+ {[%clk 0:01:04.6]} 27. Ke2 {[%clk 0:00:45.1]}
27... Rd2+ {[%clk 0:00:32.3]} 0-1

[Event "*** Biggest EVER Titled Tuesday"]
[Site "Chess.com"]
[Date "2018.04.17"]
[Round "10"]
[White "ChessQueen"]
[Black "AndrewDGreen"]
[Result "1-0"]
[WhiteElo "2581"]
[BlackElo "2154"]
[TimeControl "180+2"]
[EndTime "15:21:31 PDT"]
[Termination "ChessQueen won by resignation"]

1. e4 {[%clk 0:03:01.9]} 1... Nf6 {[%clk 0:02:56.6]} 2. e5 {[%clk 0:03:01.4]}
2... Nd5 {[%clk 0:02:55.6]} 3. d4 {[%clk 0:03:02.4]} 3... d6 {[%clk 0:02:56.6]}
4. Nf3 {[%clk 0:03:03.8]} 4... dxe5 {[%clk 0:02:57.6]} 5. Nxe5 {[%clk
0:03:04.2]} 5... c6 {[%clk 0:02:58.8]} 6. Bc4 {[%clk 0:03:03.6]} 6... e6 {[%clk
0:02:54]} 7. O-O {[%clk 0:03:02.4]} 7... Be7 {[%clk 0:02:55.2]} 8. Bb3 {[%clk
0:03:02.8]} 8... Nd7 {[%clk 0:02:54.4]} 9. Nf3 {[%clk 0:03:02.8]} 9... b5 {[%clk
0:02:53.8]} 10. a4 {[%clk 0:02:54.4]} 10... Bb7 {[%clk 0:02:45.8]} 11. c3 {[%clk
0:02:54.8]} 11... O-O {[%clk 0:02:43.3]} 12. Bc2 {[%clk 0:02:55.5]} 12... a6
{[%clk 0:02:43.7]} 13. Qd3 {[%clk 0:02:54.2]} 13... g6 {[%clk 0:02:31.8]} 14.
Bh6 {[%clk 0:02:53.2]} 14... Re8 {[%clk 0:02:32.1]} 15. Nbd2 {[%clk 0:02:53.4]}
15... Qc7 {[%clk 0:02:22.9]} 16. Rfe1 {[%clk 0:02:28.7]} 16... Bf6 {[%clk
0:02:02]} 17. Ne4 {[%clk 0:02:22.9]} 17... Bh8 {[%clk 0:01:58.4]} 18. Qd2 {[%clk
0:02:21.1]} 18... c5 {[%clk 0:01:38.1]} 19. axb5 {[%clk 0:02:16.6]} 19... axb5
{[%clk 0:01:38.9]} 20. Bd3 {[%clk 0:01:57.3]} 20... b4 {[%clk 0:01:25.9]} 21.
Rxa8 {[%clk 0:01:42.1]} 21... Rxa8 {[%clk 0:01:17.2]} 22. Bb5 {[%clk 0:01:39.1]}
22... bxc3 {[%clk 0:00:48.3]} 23. bxc3 {[%clk 0:01:39.2]} 23... cxd4 {[%clk
0:00:23.8]} 24. cxd4 {[%clk 0:01:39.9]} 24... Ba6 {[%clk 0:00:08.8]} 25. Rc1
{[%clk 0:01:36.2]} 25... Qb7 {[%clk 0:00:07.8]} 26. Nd6 {[%clk 0:01:30.4]} 26...
Qa7 {[%clk 0:00:04.4]} 27. Bc6 {[%clk 0:01:27.5]} 27... Rb8 {[%clk 0:00:04.6]}
28. Bxd5 {[%clk 0:01:18.4]} 28... exd5 {[%clk 0:00:06.5]} 29. Qf4 {[%clk
0:01:11.5]} 29... Nf6 {[%clk 0:00:08]} 30. Nf5 {[%clk 0:01:00.3]} 30... Qd7
{[%clk 0:00:08.1]} 31. Qxb8+ {[%clk 0:01:00.3]} 31... Ne8 {[%clk 0:00:06.7]} 32.
Re1 {[%clk 0:00:58.7]} 1-0

[Event "*** Biggest EVER Titled Tuesday"]
[Site "Chess.com"]
[Date "2018.04.17"]
[Round "10"]
[White "sergiochess83"]
[Black "Rakhmanov_Aleksandr"]
[Result "1-0"]
[WhiteElo "2809"]
[BlackElo "2678"]
[TimeControl "180+2"]
[EndTime "15:22:01 PDT"]
[Termination "sergiochess83 won on time"]

1. c4 {[%clk 0:03:00.1]} 1... Nf6 {[%clk 0:03:00.1]} 2. Nc3 {[%clk 0:03:00.5]}
2... g6 {[%clk 0:03:00.2]} 3. e4 {[%clk 0:02:58.6]} 3... Bg7 {[%clk 0:02:59.2]}
4. d4 {[%clk 0:02:58.9]} 4... O-O {[%clk 0:03:00.7]} 5. h3 {[%clk 0:02:56.7]}
5... c6 {[%clk 0:03:01.2]} 6. Bd3 {[%clk 0:02:52.1]} 6... d6 {[%clk 0:03:00.5]}
7. Nf3 {[%clk 0:02:51.6]} 7... Na6 {[%clk 0:03:01.2]} 8. O-O {[%clk 0:02:47.9]}
8... e5 {[%clk 0:03:01.9]} 9. Be3 {[%clk 0:02:45.8]} 9... Nh5 {[%clk 0:02:58.7]}
10. Re1 {[%clk 0:02:39.9]} 10... h6 {[%clk 0:02:54]} 11. Qd2 {[%clk 0:02:37.9]}
11... Kh7 {[%clk 0:02:54.8]} 12. Rad1 {[%clk 0:02:38.6]} 12... Qf6 {[%clk
0:02:50]} 13. c5 {[%clk 0:02:20.3]} 13... Bxh3 {[%clk 0:02:10.8]} 14. cxd6
{[%clk 0:02:18.9]} 14... Bg4 {[%clk 0:02:10.2]} 15. dxe5 {[%clk 0:02:09.5]}
15... Qe6 {[%clk 0:02:04.7]} 16. Be2 {[%clk 0:01:59.8]} 16... Bxf3 {[%clk
0:01:56.9]} 17. Bxf3 {[%clk 0:01:59.9]} 17... Qxe5 {[%clk 0:01:51.3]} 18. Bxh5
{[%clk 0:01:43.3]} 18... Qxh5 {[%clk 0:01:49.1]} 19. f4 {[%clk 0:01:44.5]} 19...
Nc5 {[%clk 0:01:42]} 20. e5 {[%clk 0:01:40.9]} 20... Ne6 {[%clk 0:01:41.4]} 21.
Qe2 {[%clk 0:01:37.5]} 21... Qxe2 {[%clk 0:01:30]} 22. Nxe2 {[%clk 0:01:38.5]}
22... h5 {[%clk 0:01:12.3]} 23. Nd4 {[%clk 0:01:33.4]} 23... Nd8 {[%clk
0:00:46.3]} 24. b4 {[%clk 0:01:21]} 24... a5 {[%clk 0:00:46.4]} 25. b5 {[%clk
0:01:17]} 25... c5 {[%clk 0:00:47.3]} 26. Nb3 {[%clk 0:01:14.2]} 26... b6 {[%clk
0:00:47.8]} 27. Nd2 {[%clk 0:01:14.7]} 27... Ne6 {[%clk 0:00:42.2]} 28. Nc4
{[%clk 0:01:15]} 28... Rab8 {[%clk 0:00:43.7]} 29. g3 {[%clk 0:01:12.9]} 29...
Rfd8 {[%clk 0:00:44.1]} 30. Kg2 {[%clk 0:01:09]} 30... f5 {[%clk 0:00:42.4]} 31.
exf6 {[%clk 0:00:52.3]} 31... Bxf6 {[%clk 0:00:43.4]} 32. d7 {[%clk 0:00:49.8]}
32... Nd4 {[%clk 0:00:31.4]} 33. Bxd4 {[%clk 0:00:47.3]} 1-0

[Event "*** Biggest EVER Titled Tuesday"]
[Site "Chess.com"]
[Date "2018.04.17"]
[Round "10"]
[White "Alex_Molchanov"]
[Black "MartinMatthiesen"]
[Result "1-0"]
[WhiteElo "2559"]
[BlackElo "2411"]
[TimeControl "180+2"]
[EndTime "15:22:08 PDT"]
[Termination "Alex_Molchanov won by resignation"]

1. d4 {[%clk 0:03:01.9]} 1... Nf6 {[%clk 0:02:58.2]} 2. c4 {[%clk 0:03:02.7]}
2... g6 {[%clk 0:02:58.8]} 3. Nc3 {[%clk 0:03:03.3]} 3... Bg7 {[%clk 0:02:59.6]}
4. e4 {[%clk 0:03:04.2]} 4... d6 {[%clk 0:03:00.1]} 5. f3 {[%clk 0:03:05.1]}
5... O-O {[%clk 0:03:00.6]} 6. Be3 {[%clk 0:03:06.3]} 6... c5 {[%clk 0:03:01.2]}
7. Nge2 {[%clk 0:03:07.1]} 7... Nc6 {[%clk 0:03:01.2]} 8. d5 {[%clk 0:03:07.3]}
8... Ne5 {[%clk 0:03:01]} 9. Nc1 {[%clk 0:03:06.3]} 9... e6 {[%clk 0:02:57.7]}
10. Be2 {[%clk 0:03:06.1]} 10... exd5 {[%clk 0:02:57.2]} 11. cxd5 {[%clk
0:03:07.3]} 11... a6 {[%clk 0:02:57]} 12. a4 {[%clk 0:03:07.7]} 12... Bd7 {[%clk
0:02:44.3]} 13. O-O {[%clk 0:03:07.4]} 13... b5 {[%clk 0:02:42.4]} 14. axb5
{[%clk 0:03:04.7]} 14... axb5 {[%clk 0:02:43.1]} 15. Rxa8 {[%clk 0:03:04.8]}
15... Qxa8 {[%clk 0:02:43.9]} 16. Bxb5 {[%clk 0:02:58.6]} 16... Bxb5 {[%clk
0:02:41.6]} 17. Nxb5 {[%clk 0:02:59.3]} 17... Nc4 {[%clk 0:02:42]} 18. Bf4
{[%clk 0:02:45.6]} 18... Qa6 {[%clk 0:02:36.9]} 19. b3 {[%clk 0:02:24]} 19...
Nb2 {[%clk 0:02:09.9]} 20. Qe2 {[%clk 0:02:23.6]} 20... Rb8 {[%clk 0:02:09.5]}
21. Nxd6 {[%clk 0:02:00.9]} 21... Qxe2 {[%clk 0:01:54.5]} 22. Nxe2 {[%clk
0:02:02.8]} 22... Rxb3 {[%clk 0:01:48.8]} 23. Ra1 {[%clk 0:02:03.2]} 23... h6
{[%clk 0:01:19.5]} 24. Ra8+ {[%clk 0:01:54.9]} 24... Kh7 {[%clk 0:01:20]} 25.
Nxf7 {[%clk 0:01:55.3]} 25... Nd3 {[%clk 0:01:16.5]} 26. Rb8 {[%clk 0:01:26]}
26... Nxf4 {[%clk 0:01:02.7]} 27. Rxb3 {[%clk 0:01:25.7]} 27... Nxe2+ {[%clk
0:01:03.8]} 28. Kf1 {[%clk 0:01:23.8]} 28... Nd4 {[%clk 0:01:01.5]} 29. Rb7
{[%clk 0:01:21.5]} 29... c4 {[%clk 0:00:27.5]} 30. Rc7 {[%clk 0:01:22.1]} 30...
Nc2 {[%clk 0:00:28.5]} 31. Ke2 {[%clk 0:01:19.9]} 31... Ne8 {[%clk 0:00:27.4]}
32. Rc8 {[%clk 0:01:10.1]} 32... Nf6 {[%clk 0:00:19.3]} 33. Rxc4 {[%clk
0:01:08.3]} 33... Na3 {[%clk 0:00:19.7]} 34. Rc8 {[%clk 0:01:05]} 34... Nd7
{[%clk 0:00:19.8]} 35. g3 {[%clk 0:01:02.2]} 35... g5 {[%clk 0:00:19.9]} 36. Nd6
{[%clk 0:01:01.6]} 36... Kg6 {[%clk 0:00:19.6]} 37. f4 {[%clk 0:00:58.5]} 37...
gxf4 {[%clk 0:00:19.7]} 38. gxf4 {[%clk 0:00:59.6]} 38... Nf6 {[%clk 0:00:18.2]}
39. Kf3 {[%clk 0:00:57.9]} 39... Nb1 {[%clk 0:00:16.3]} 40. Nc4 {[%clk
0:00:58.4]} 40... Nc3 {[%clk 0:00:15.8]} 41. Ne5+ {[%clk 0:00:59.4]} 41... Kh7
{[%clk 0:00:15]} 42. Rxc3 {[%clk 0:01:00.1]} 1-0

[Event "*** Biggest EVER Titled Tuesday"]
[Site "Chess.com"]
[Date "2018.04.17"]
[Round "10"]
[White "Generalas"]
[Black "Karina_Oparina"]
[Result "1-0"]
[WhiteElo "2212"]
[BlackElo "2155"]
[TimeControl "180+2"]
[EndTime "15:22:28 PDT"]
[Termination "Generalas won by resignation"]

1. Nf3 {[%clk 0:03:01.9]} 1... Nf6 {[%clk 0:03:00.1]} 2. c4 {[%clk 0:03:02.1]}
2... c5 {[%clk 0:02:59.7]} 3. g3 {[%clk 0:03:01.5]} 3... b6 {[%clk 0:02:58.8]}
4. Bg2 {[%clk 0:03:02.4]} 4... Bb7 {[%clk 0:02:59.2]} 5. O-O {[%clk 0:03:02]}
5... e6 {[%clk 0:02:59.9]} 6. Nc3 {[%clk 0:02:58.3]} 6... Be7 {[%clk 0:03:00]}
7. a3 {[%clk 0:02:51.7]} 7... O-O {[%clk 0:02:55.9]} 8. Rb1 {[%clk 0:02:52]}
8... d5 {[%clk 0:02:51.5]} 9. cxd5 {[%clk 0:02:48.6]} 9... Nxd5 {[%clk 0:02:51]}
10. Qc2 {[%clk 0:02:35.8]} 10... Nd7 {[%clk 0:02:39.7]} 11. d3 {[%clk
0:02:29.1]} 11... Nxc3 {[%clk 0:02:25.3]} 12. bxc3 {[%clk 0:02:28.3]} 12... e5
{[%clk 0:02:07.8]} 13. a4 {[%clk 0:02:18.3]} 13... Rb8 {[%clk 0:02:02]} 14. e4
{[%clk 0:02:09.8]} 14... f6 {[%clk 0:01:55.4]} 15. Bh3 {[%clk 0:02:08]} 15...
Kh8 {[%clk 0:01:51.8]} 16. Nh4 {[%clk 0:02:01.2]} 16... c4 {[%clk 0:01:39.1]}
17. d4 {[%clk 0:01:56.2]} 17... Re8 {[%clk 0:01:20.1]} 18. f4 {[%clk 0:01:37.1]}
18... exf4 {[%clk 0:01:05.1]} 19. gxf4 {[%clk 0:01:37.4]} 19... Nc5 {[%clk
0:00:36]} 20. Bg2 {[%clk 0:01:17.1]} 20... Nd3 {[%clk 0:00:24.5]} 21. Be3 {[%clk
0:01:15.1]} 21... Bf8 {[%clk 0:00:21.4]} 22. e5 {[%clk 0:01:08.3]} 22... fxe5
{[%clk 0:00:20.7]} 23. Nf5 {[%clk 0:00:56.7]} 23... e4 {[%clk 0:00:18.8]} 24.
Ng3 {[%clk 0:00:52.4]} 24... Be7 {[%clk 0:00:15.5]} 25. Bh3 {[%clk 0:00:49.3]}
25... Bh4 {[%clk 0:00:15.2]} 26. Rb5 {[%clk 0:00:44.2]} 26... Bxg3 {[%clk
0:00:15.3]} 27. hxg3 {[%clk 0:00:43.5]} 27... Bc6 {[%clk 0:00:14.2]} 28. Rh5
{[%clk 0:00:42]} 28... g6 {[%clk 0:00:14.2]} 29. Rh4 {[%clk 0:00:41.3]} 29...
Qf6 {[%clk 0:00:09.1]} 30. Qh2 {[%clk 0:00:38.6]} 30... Rb7 {[%clk 0:00:08.1]}
31. f5 {[%clk 0:00:33.6]} 31... Rf8 {[%clk 0:00:05.9]} 32. fxg6 {[%clk
0:00:33.2]} 32... Qg7 {[%clk 0:00:04]} 33. Rxh7+ {[%clk 0:00:32]} 33... Qxh7
{[%clk 0:00:03.5]} 34. Rxf8+ {[%clk 0:00:26.9]} 34... Kg7 {[%clk 0:00:02.8]} 35.
gxh7 {[%clk 0:00:24.6]} 1-0